bitfinex-derivatives/quotes_ETHF0:USTF0_20251031
["timestamp","ask_amount","ask_price","bid_price","bid_amount"]
[1761916452056,0.08113622,3854.5,3854.4,0.7951]
[1761916452246,0.4425,3854.7,3854.6,0.804]
[1761916452447,0.52363381,3854.7,3854.6,0.804]
[1761916452846,0.62943381,3854.7,3854.6,0.804]
[1761916453045,0.85083381,3854.7,3854.6,0.804]
[1761916453948,0.30223381,3854.7,3854.6,0.804]
[1761916455155,0.2211,3854.7,3854.6,0.804]
[1761916455649,3.4289,3855.0,3854.9,0.2345]
[1761916455857,0.5236315,3855.0,3854.9,0.804]
[1761916456056,0.3022315,3855.0,3854.9,0.804]
[1761916456452,0.0811315,3855.0,3854.9,0.804]
[1761916456754,3.75808724,3855.4,3855.3,0.804]
[1761916456957,3.83921004,3855.4,3855.3,0.804]
[1761916457456,0.08311004,3855.4,3855.3,0.804]
[1761916457759,0.00198724,3855.4,3855.3,0.804]
[1761916461555,0.3272,3856.4,3856.1,0.4687]
[1761916461755,3.2078,3856.6,3856.5,0.9414]
[1761916462057,3.2078,3857.1,3857.0,0.9414]
[1761916462359,0.7697,3857.1,3857.0,0.804]
[1761916462555,0.4425,3856.8,3856.7,0.804]
[1761916462753,0.7697,3856.8,3856.7,0.80707899]
[1761916462950,0.85079149,3856.8,3856.7,0.00307899]
[1761916463456,0.2214,3856.1,3856.0,0.2345]
[1761916463657,0.4425,3856.1,3856.0,0.804]
[1761916464157,0.7697,3856.1,3856.0,0.804]
[1761916464655,0.7697,3856.1,3856.0,0.80726603]
[1761916465754,0.2211,3856.1,3856.0,0.94466603]
[1761916466150,0.5529,3856.1,3856.0,0.94466603]
[1761916466458,0.7864,3856.1,3856.0,0.94466603]
[1761916466654,0.7864,3856.1,3856.0,0.80726603]
[1761916467663,0.7864,3856.1,3856.0,0.00326603]
[1761916469654,0.8332,3855.5,3855.4,0.2245]
[1761916469859,0.7949,3855.5,3855.4,0.7881]
[1761916470164,0.7949,3855.8,3855.7,0.7881]
[1761916470460,0.7949,3855.8,3855.7,0.2245]
[1761916470658,0.7949,3855.8,3855.7,0.22730704]
[1761916471452,0.7949,3855.8,3855.7,0.79090704]
[1761916472562,0.7949,3855.8,3855.7,0.00280704]
[1761916473166,0.7949,3855.8,3855.7,0.22730704]
[1761916473357,0.7949,3855.8,3855.7,3.99870704]
[1761916473859,0.7949,3855.8,3855.7,0.79090704]
[1761916474955,3.2078,3856.3,3855.9,0.2245]
[1761916475265,0.5998,3856.0,3855.9,0.2245]
[1761916475465,0.9316,3856.0,3855.9,0.2245]
[1761916476162,0.5614,3856.4,3856.3,0.2245]
[1761916476375,0.7949,3856.1,3856.0,0.5594]
[1761916476758,0.7949,3856.1,3856.0,0.2245]
[1761916477265,0.7949,3856.1,3855.8,3.2078]
[1761916477266,0.7949,3855.9,3855.8,3.7672]
[1761916477465,0.7949,3855.9,3855.8,3.9959]
[1761916478371,0.7949,3855.9,3855.8,3.4323]
[1761916478671,0.7949,3855.9,3855.8,3.7672]
[1761916478965,0.7949,3855.9,3855.8,0.2245]
[1761916479161,0.7949,3855.8,3855.7,0.00280704]
[1761916480270,0.7949,3855.8,3855.7,0.56220704]
[1761916480567,0.7949,3855.8,3855.7,0.22730704]
[1761916481364,0.7949,3855.8,3855.7,0.00280704]
[1761916484273,0.87601458,3855.8,3855.7,0.00280704]
[1761916484779,4.08381458,3855.8,3855.7,0.00280704]
[1761916489276,4.08381458,3855.8,3855.7,0.22400704]
[1761916489474,4.08381458,3855.8,3855.7,0.77250704]
[1761916490477,0.7982,3856.2,3856.1,0.7697]
[1761916490676,0.8793073,3856.2,3856.1,0.7697]
[1761916490980,0.7982,3855.8,3855.7,0.00280704]
[1761916491288,0.8793073,3855.8,3855.7,0.00280704]
[1761916495088,0.3458,3854.4,3854.3,0.9337911]
[1761916495278,0.7982,3854.3,3854.2,0.7697]
[1761916496079,0.80108418,3854.3,3854.2,0.77207829]
[1761916496485,0.80108418,3854.3,3854.2,0.00237829]
[1761916497180,0.88223174,3854.3,3854.2,0.00237829]
[1761916497383,0.88223271,3854.3,3854.2,0.00237829]
[1761916497585,0.80108418,3854.3,3854.2,0.55297829]
[1761916500285,0.00288418,3854.3,3854.2,0.77207829]
[1761916500478,0.22058418,3854.3,3854.2,0.77207829]
[1761916500888,0.00288418,3854.3,3854.2,0.77207829]
[1761916501591,3.2078,3855.0,3854.9,0.7697]
[1761916501987,4.006,3855.0,3854.9,0.7697]
[1761916502290,3.2078,3855.0,3854.9,0.7697]
[1761916502585,3.20975821,3855.0,3854.9,0.7697]
[1761916502981,3.42745821,3855.0,3854.9,0.7697]
[1761916503189,0.21965821,3855.0,3854.9,0.7697]
[1761916504091,0.00195821,3855.0,3854.9,0.7697]
[1761916504888,0.56545821,3855.0,3854.9,3.9775]
[1761916505488,0.21965821,3855.0,3854.9,3.9775]
[1761916505996,0.56545821,3855.0,3854.9,3.9775]
[1761916507092,0.21965821,3855.0,3854.9,3.9775]
[1761916507296,0.00195821,3855.0,3854.9,3.9775]
[1761916508688,1.51542157,3856.5,3855.7,0.4403]
[1761916508689,0.3458,3856.1,3855.7,0.4403]
[1761916508896,0.7982,3856.1,3856.0,0.9016]
[1761916509792,0.8012455,3856.1,3856.0,0.9016]
[1761916510296,0.4554455,3856.1,3856.0,0.9016]
[1761916510991,0.7815455,3856.1,3856.0,0.9016]
[1761916511484,0.7815455,3856.1,3856.0,0.7697]
[1761916511885,0.7815455,3856.1,3856.0,0.9111]
[1761916512094,0.4554455,3856.1,3856.0,0.9111]
[1761916513102,0.7771455,3856.1,3856.0,0.7697]
[1761916513502,0.0030455,3856.1,3856.0,0.9111]
[1761916515794,4.0013,3857.1,3857.0,0.7978]
[1761916516795,4.00373558,3857.1,3857.0,0.79994992]
[1761916517399,0.79593558,3857.1,3857.0,0.79994992]
[1761916517585,0.56563558,3857.1,3857.0,0.94134992]
[1761916518798,0.56563558,3857.1,3857.0,0.00214992]
[1761916518799,4.00373558,3857.1,3857.0,0.00214992]
[1761916518994,0.7935,3856.3,3856.2,0.7978]
[1761916519197,0.5632,3856.3,3856.2,0.7978]
[1761916519498,0.7935,3856.3,3856.2,0.4576]
[1761916519886,0.7935,3856.3,3856.2,0.45947154]
[1761916520088,0.2371,3856.3,3856.2,0.79967154]
[1761916521095,0.2371,3856.7,3856.6,0.7978]
[1761916521303,0.7935,3856.7,3856.6,0.2257]
[1761916521799,0.7935,3856.7,3856.6,0.5659]
[1761916521998,0.7935,3856.7,3856.6,0.7978]
[1761916522502,0.7935,3856.3,3856.2,0.00187154]
[1761916526198,0.7935,3856.3,3856.2,0.55907154]
[1761916526399,0.7935,3856.3,3856.2,0.78267154]
[1761916527001,0.7935,3856.3,3856.2,0.00187154]
[1761916528097,0.7935,3856.3,3856.2,0.78267154]
[1761916532007,0.7935,3856.3,3856.2,0.23137154]
[1761916533409,0.7935,3856.3,3856.2,0.00187154]
[1761916533612,4.0013,3856.3,3856.2,0.00187154]
[1761916535408,4.08240512,3856.3,3856.2,0.00187154]
[1761916537307,0.2342,3855.4,3855.3,3.4373]
[1761916537507,0.7969,3855.4,3855.3,3.2078]
[1761916538315,0.7969,3855.4,3854.9,0.3277]
[1761916538316,0.7969,3855.0,3854.9,3.765]
[1761916538515,0.9373,3855.0,3854.9,3.44032189]
[1761916538713,4.22623054,3855.0,3854.9,0.00302189]
[1761916544615,4.1451,3855.0,3854.9,0.00302189]
[1761916549413,0.4516,3854.2,3854.1,0.5598]
[1761916549619,0.7821,3854.2,3854.1,0.5598]
[1761916550214,0.7821,3854.2,3854.1,0.7753]
[1761916550415,0.78481756,3854.2,3854.1,0.77831817]
[1761916551520,0.78481756,3854.2,3854.1,0.00301817]
[1761916552224,0.78481756,3854.2,3854.1,0.23531817]
[1761916552416,0.78481756,3854.2,3854.1,0.77831817]
[1761916553629,0.78481756,3854.2,3854.1,0.23531817]
[1761916554615,0.78481756,3854.2,3854.1,0.00301817]
[1761916556122,0.913,3853.5,3853.4,0.5598]
[1761916556317,0.7821,3853.2,3853.1,0.89437043]
[1761916556523,0.7821,3853.2,3853.1,0.44657043]
[1761916557118,0.7821,3853.2,3853.1,0.44950584]
[1761916557522,0.1345,3853.0,3852.2,0.5598]
[1761916557724,0.4516,3852.3,3852.2,0.2323]
[1761916558228,0.7821,3852.0,3851.9,0.7753]
[1761916558430,0.7821,3851.9,3851.8,3.7676]
[1761916558628,0.7821,3851.9,3851.8,0.56280675]
[1761916558939,0.7821,3851.9,3851.8,0.77830675]
[1761916559534,0.4516,3851.9,3851.8,0.77830675]
[1761916559734,0.7821,3851.9,3851.8,0.77830675]
[1761916560331,0.2345,3851.9,3851.8,0.77830675]
[1761916560536,0.7821,3852.5,3852.4,0.7753]
[1761916560837,0.2345,3852.5,3852.4,0.7753]
[1761916561227,3.9899,3852.8,3852.7,0.7753]
[1761916561423,3.2078,3852.8,3852.7,0.7753]
[1761916561830,3.7728,3852.8,3852.7,0.7753]
[1761916562031,3.9899,3852.8,3852.7,0.7753]
[1761916563138,0.7821,3853.2,3853.1,0.7753]
[1761916563439,0.4516,3853.2,3853.1,0.7753]
[1761916564139,0.2345,3853.2,3853.1,0.7753]
[1761916564939,0.565,3853.2,3853.1,0.7753]
[1761916565140,0.7821,3853.2,3853.1,0.7753]
[1761916565440,0.7821,3853.2,3853.1,0.2323]
[1761916565639,0.7821,3852.9,3852.8,0.7753]
[1761916566332,0.4516,3852.7,3852.2,3.2078]
[1761916566536,0.7821,3852.8,3852.7,0.5598]
[1761916566737,0.7821,3852.8,3852.7,0.7753]
[1761916566936,3.2078,3853.3,3853.2,0.7753]
[1761916567143,3.2078,3853.7,3853.2,0.543]
[1761916567433,3.9899,3853.7,3853.6,0.7753]
[1761916569539,3.2078,3853.7,3853.6,0.7753]
[1761916570141,0.565,3853.7,3853.6,0.7753]
[1761916570343,0.2345,3853.7,3853.6,0.7753]
[1761916570848,0.7821,3853.7,3853.6,0.7753]
[1761916571345,0.7925,3853.2,3853.1,0.44657043]
[1761916573446,0.7925,3853.2,3853.1,1.23187043]
[1761916573637,0.7925,3853.2,3853.1,0.44657043]
[1761916574641,0.87367446,3853.2,3853.1,0.44657043]
[1761916577846,0.4487,3852.3,3852.2,3.2078]
[1761916578053,0.7925,3852.3,3852.2,3.5488]
[1761916578349,0.7925,3852.3,3852.2,3.7653]
[1761916578550,0.7925,3852.3,3852.2,3.2078]
[1761916579146,0.7925,3852.3,3852.2,3.7653]
[1761916579349,0.7925,3852.3,3852.2,0.5575]
[1761916579648,0.7925,3852.3,3852.2,0.341]
[1761916579949,0.7925,3852.1,3852.0,0.341]
[1761916580852,0.7925,3852.1,3852.0,0.5575]
[1761916581358,0.4487,3852.1,3852.0,0.9253]
[1761916584868,3.9996,3852.4,3852.3,0.8096]
[1761916585049,4.08079012,3852.4,3852.3,0.8096]
[1761916585960,4.08079012,3852.4,3852.3,0.5822]
[1761916586264,4.08079012,3852.4,3852.3,0.3528]
[1761916586465,13.15179012,3852.4,3852.3,0.3528]
[1761916587660,0.7918,3851.5,3851.4,0.5822]
[1761916587964,0.4462,3851.5,3851.4,0.8096]
[1761916588770,0.7918,3851.5,3851.4,0.8096]
[1761916589062,0.7945426,3851.5,3851.4,0.81149238]
[1761916589468,0.7945426,3851.5,3851.4,0.00189238]
[1761916589764,0.9308426,3851.5,3851.4,0.00189238]
[1761916589967,1.01204829,3851.5,3851.4,0.00189238]
[1761916590168,0.87574829,3851.5,3851.4,0.58409238]
[1761916590559,0.0027426,3851.5,3851.4,0.81149238]
[1761916592361,3.2078,3852.2,3852.1,0.8096]
[1761916593262,3.20979114,3852.2,3852.1,0.8096]
[1761916593467,0.00199114,3852.2,3852.1,0.8096]
[1761916593669,0.79379114,3852.2,3852.1,0.8096]
[1761916593863,0.44819114,3852.2,3852.1,0.8096]
[1761916594064,0.00199114,3852.2,3852.1,0.8096]
[1761916595374,3.65599114,3852.2,3852.1,0.8096]
[1761916596572,3.43729114,3852.2,3852.1,0.8096]
[1761916596774,0.22949114,3852.2,3852.1,0.8096]
[1761916597974,0.44819114,3852.2,3852.1,0.8096]
[1761916598672,0.79379114,3852.2,3852.1,0.8096]
[1761916599369,0.79379114,3852.2,3852.1,0.5822]
[1761916599676,0.79379114,3852.2,3852.1,0.3528]
[1761916599864,0.5643,3851.9,3851.8,0.5822]
[1761916600171,0.4462,3851.6,3851.5,0.5854]
[1761916600373,0.2275,3851.6,3851.5,0.5854]
[1761916600572,0.3456,3852.1,3851.6,0.3528]
[1761916600874,0.4462,3851.7,3851.6,0.8113]
[1761916601871,0.7733,3851.7,3851.6,0.8113]
[1761916602470,0.4462,3851.7,3851.6,0.8113]
[1761916603574,0.7733,3851.7,3851.6,0.8113]
[1761916604467,3.2078,3851.8,3851.4,0.35779238]
[1761916604468,0.2193,3851.5,3851.4,0.35779238]
[1761916604676,0.2193,3851.5,3851.4,0.82009238]
[1761916604677,0.4493,3851.5,3851.4,0.82009238]
[1761916605264,0.7764,3851.5,3851.4,0.82009238]
[1761916605476,0.7764,3850.9,3850.8,0.3559]
[1761916605682,0.7764,3850.9,3850.8,0.5891]
[1761916606578,0.7764,3850.9,3850.8,0.59192031]
[1761916607477,0.4493,3850.9,3850.8,0.82102031]
[1761916607873,0.7764,3850.9,3850.8,0.82102031]
[1761916608770,0.4493,3850.9,3850.8,0.82102031]
[1761916608972,3.2078,3851.4,3850.9,0.8182]
[1761916609177,3.4271,3851.4,3851.3,0.8182]
[1761916609377,3.2078,3851.4,3851.3,0.8182]
[1761916610184,3.4271,3851.4,3851.3,0.8182]
[1761916611479,0.2193,3851.4,3851.3,0.8182]
[1761916611681,0.7764,3850.9,3850.8,0.59192031]
[1761916612074,0.4493,3850.9,3850.8,0.82102031]
[1761916612977,0.7764,3850.9,3850.8,0.00282031]
[1761916614572,0.7764,3850.9,3850.8,0.59192031]
[1761916614776,0.4493,3850.9,3850.8,0.82102031]
[1761916615886,0.7764,3850.9,3850.8,0.82102031]
[1761916616082,0.7764,3850.9,3850.8,0.00282031]
[1761916616787,9.8724,3850.9,3850.8,0.35872031]
[1761916617280,9.8724,3850.9,3850.8,0.00282031]
[1761916617682,9.95362304,3850.9,3850.8,0.00282031]
[1761916621079,0.4493,3850.1,3850.0,0.5909]
[1761916621281,9.092,3850.2,3850.1,0.4623]
[1761916621480,9.092,3850.2,3850.1,0.8182]
[1761916621892,9.3113,3850.2,3850.1,0.8182]
[1761916622085,9.3113,3850.2,3850.1,0.82092211]
[1761916622086,9.092,3850.2,3850.1,0.82092211]
[1761916623393,9.3113,3850.2,3850.1,0.82092211]
[1761916624384,9.092,3850.2,3850.1,0.82092211]
[1761916625489,9.3113,3850.2,3850.1,0.82092211]
[1761916626381,9.8684,3850.2,3850.1,0.82092211]
[1761916627884,9.8684,3850.2,3850.1,0.00272211]
[1761916630092,0.7764,3850.2,3850.1,0.82092211]
[1761916630286,6.7633,3850.2,3850.1,0.82092211]
[1761916631787,0.4493,3850.2,3850.1,0.82092211]
[1761916631991,3.9991,3850.7,3850.6,0.5558]
[1761916632197,12.7344,3850.7,3850.6,0.7857]
[1761916632690,3.6524,3850.7,3850.6,0.7857]
[1761916632898,12.7344,3850.7,3850.6,0.7857]
[1761916633286,0.2149,3850.6,3850.1,0.00272211]
[1761916633492,3.9991,3850.2,3850.1,0.00272211]
[1761916633697,7.2493,3850.2,3850.1,0.32832211]
[1761916634197,10.4571,3850.2,3850.1,0.32832211]
[1761916634395,10.53833611,3850.2,3850.1,0.32832211]
[1761916634595,10.53833611,3850.2,3850.1,0.00272211]
[1761916639789,10.53833611,3850.2,3850.1,0.55762211]
[1761916639790,4.08033611,3850.2,3850.1,0.55762211]
[1761916640099,11.90833611,3850.2,3850.1,0.55762211]
[1761916641395,11.90833611,3850.2,3850.1,0.33162211]
[1761916641898,11.90833611,3850.2,3850.1,0.00272211]
[1761916645701,11.90833611,3850.2,3850.1,0.33162211]
[1761916646407,4.08033611,3850.2,3850.1,0.33162211]
[1761916646599,13.15433611,3850.2,3850.1,0.33162211]
[1761916649413,13.15433611,3850.2,3850.1,0.55762211]
[1761916649812,13.15433611,3850.2,3850.1,0.33162211]
[1761916650412,4.08033611,3850.2,3850.1,0.33162211]
[1761916650612,13.15033611,3850.2,3850.1,0.33162211]
[1761916651014,13.15033611,3850.2,3850.1,0.00272211]
[1761916651714,13.15033611,3850.2,3850.1,0.33162211]
[1761916652618,13.15033611,3850.2,3850.1,0.00272211]
[1761916653110,13.15033611,3850.2,3850.1,0.33162211]
[1761916653918,13.15033611,3850.2,3850.1,0.00272211]
[1761916658417,13.15033611,3850.2,3850.1,0.33162211]
[1761916658612,13.15033611,3850.2,3850.1,0.77812211]
[1761916658613,3.73363611,3850.2,3850.1,0.77812211]
[1761916658820,9.13823611,3850.2,3850.1,0.77812211]
[1761916659017,3.2078,3850.6,3850.5,0.9166]
[1761916659318,3.4338,3851.0,3850.9,0.4465]
[1761916659514,4.81635676,3851.8,3851.7,0.226]
[1761916659822,0.54160552,3851.8,3851.7,0.7754]
[1761916660120,9.60660552,3851.8,3851.7,0.7754]
[1761916660323,13.16120156,3851.8,3851.7,0.3289]
[1761916660822,13.16120156,3851.8,3851.7,0.5549]
[1761916661211,0.7766,3851.6,3851.5,0.6935]
[1761916661918,1.38255676,3852.9,3851.5,11.345]
[1761916662215,4.309,3856.0,3851.5,11.345]
[1761916662216,3.2078,3854.6,3853.6,0.4406]
[1761916662423,10.6028,3854.5,3853.8,0.327]
[1761916662813,0.4429,3853.9,3853.8,0.327]
[1761916663014,0.44527709,3853.9,3853.8,0.55428749]
[1761916664024,0.77897709,3853.9,3853.8,0.55428749]
[1761916664521,0.00237709,3853.9,3853.8,0.76958749]
[1761916664822,9.23537709,3853.9,3853.8,0.76958749]
[1761916665213,9.46027709,3853.9,3853.8,0.76958749]
[1761916665410,9.45427709,3853.9,3853.8,0.76958749]
[1761916665810,9.45327709,3853.9,3853.8,0.76958749]
[1761916666524,9.67127709,3853.9,3853.8,0.76958749]
[1761916666724,10.00497709,3853.9,3853.8,0.76958749]
[1761916667023,10.00497709,3853.9,3853.8,0.55428749]
[1761916669429,0.00237709,3853.9,3853.8,0.76958749]
[1761916669623,3.30237709,3853.9,3853.8,0.76958749]
[1761916669828,9.22537709,3853.9,3853.8,0.76958749]
[1761916671622,10.00197709,3853.9,3853.8,0.00198749]
[1761916672234,10.00197709,3853.9,3853.8,0.32898749]
[1761916672837,10.00197709,3853.9,3853.8,0.00198749]
[1761916675731,0.00237709,3853.9,3853.8,0.76958749]
[1761916675937,0.7766,3855.2,3855.1,0.5523]
[1761916676933,0.77849974,3855.2,3855.1,0.5523]
[1761916677234,0.77849974,3855.2,3855.1,0.7676]
[1761916677540,0.7766,3854.9,3854.8,3.4331]
[1761916677742,7.7026,3854.9,3854.8,3.4331]
[1761916677939,7.7026,3854.9,3854.8,3.7601]
[1761916678335,0.7766,3854.9,3854.8,3.7601]
[1761916678535,10.0746,3854.9,3854.8,3.7601]
[1761916678939,10.0746,3854.9,3854.8,3.4331]
[1761916679132,10.0746,3854.9,3854.8,3.7601]
[1761916680547,0.7766,3854.9,3854.8,3.7601]
[1761916680843,0.7766,3854.5,3854.4,3.7601]
[1761916681840,0.9146,3854.5,3854.4,3.2078]
[1761916683543,0.7766,3854.1,3854.0,0.327]
[1761916683845,10.0606,3854.1,3854.0,0.327]
[1761916684349,0.7766,3853.9,3853.8,3.76208749]
[1761916684845,0.5517,3853.9,3853.8,3.76208749]
[1761916685042,1.36524988,3856.3,3855.1,0.7676]
[1761916685043,2.648,3856.3,3855.1,0.7676]
[1761916685250,2.648,3856.3,3855.1,3.9754]
[1761916685444,3.621,3855.6,3855.1,3.9754]
[1761916685843,3.2078,3856.5,3855.1,3.9754]
[1761916686039,3.2078,3856.9,3856.1,0.327]
[1761916686246,4.60710478,3856.8,3856.1,0.327]
[1761916686442,0.08110478,3856.7,3856.1,0.327]
[1761916686739,3.20510478,3856.6,3856.1,0.327]
[1761916687046,3.28890478,3856.5,3856.0,0.4619]
[1761916687250,0.08110472,3856.4,3856.0,0.4619]
[1761916687544,0.08110472,3856.3,3856.1,0.327]
[1761916687746,3.2078,3856.5,3856.1,0.327]
[1761916687944,0.08110998,3856.4,3856.1,0.327]
[1761916688143,0.08110998,3856.3,3856.1,0.327]
[1761916688351,9.43710998,3856.2,3856.1,0.327]
[1761916691642,9.43710998,3856.2,3855.7,0.332]
[1761916691838,0.08110998,3856.1,3855.7,0.5613]
[1761916692046,0.08110998,3856.1,3855.8,0.332]
[1761916692447,0.08110998,3856.1,3856.0,0.1423]
[1761916692645,0.08110998,3856.1,3856.0,0.4743]
[1761916693346,9.41710998,3856.1,3856.0,0.4743]
[1761916695250,20.62490998,3856.1,3855.2,3.2078]
[1761916695549,0.08110998,3856.0,3855.1,0.332]
[1761916695755,12.5438,3856.1,3855.1,0.332]
[1761916695756,3.2078,3855.6,3855.1,0.332]
[1761916695956,9.41410998,3855.5,3855.1,0.332]
[1761916696150,0.08110998,3855.4,3855.1,0.332]
[1761916696548,0.08110998,3855.4,3855.3,0.332]
[1761916696855,0.08110998,3855.4,3855.3,0.5613]
[1761916697052,3.2078,3855.6,3855.5,0.9208]
[1761916697251,8.39152813,3855.6,3855.5,0.89435348]
[1761916697555,8.51752813,3855.6,3855.5,0.89435348]
[1761916698657,3.51452813,3855.6,3855.5,0.89435348]
[1761916698857,12.84452813,3855.6,3855.5,0.89435348]
[1761916699058,12.84452813,3855.6,3855.5,0.67715348]
[1761916699454,3.51452813,3855.6,3855.5,0.67715348]
[1761916699753,12.83952813,3855.6,3855.5,0.67715348]
[1761916699949,0.252,3855.1,3855.0,0.5814]
[1761916700154,9.65512813,3855.1,3855.0,0.5814]
[1761916700554,9.65512813,3855.1,3855.0,0.9134]
[1761916701649,9.52512813,3855.1,3855.0,0.9134]
[1761916702363,9.39812813,3855.1,3855.0,0.9134]
[1761916703061,9.52342813,3855.1,3855.0,0.9134]
[1761916704860,0.08112813,3855.1,3855.0,0.9134]
[1761916705049,3.2078,3856.0,3855.9,0.8224]
[1761916705050,3.3331,3856.0,3855.9,0.8224]
[1761916705250,6.3924,3856.0,3855.9,0.8224]
[1761916705555,3.3331,3856.5,3856.4,0.8224]
[1761916705764,12.7734,3856.5,3856.4,0.8224]
[1761916706256,9.5656,3856.5,3856.4,0.8224]
[1761916706762,9.6909,3856.5,3856.4,0.589]
[1761916706961,0.1253,3856.0,3855.6,3.2078]
[1761916707255,0.3759,3855.7,3855.6,3.2078]
[1761916707460,9.6929,3855.7,3855.6,3.2078]
[1761916708563,9.6929,3855.7,3855.6,3.5643]
[1761916708972,9.5676,3855.7,3855.6,3.7968]
[1761916709164,9.5666,3855.7,3855.6,4.0302]
[1761916709365,0.1253,3855.7,3855.6,4.0302]
[1761916709564,9.4363,3855.7,3855.6,4.0302]
[1761916711665,3.2078,3856.5,3856.0,0.5973]
[1761916711865,9.5616,3856.4,3856.3,0.4659]
[1761916712064,9.5556,3856.4,3856.3,0.4659]
[1761916712266,9.5556,3856.4,3856.3,0.42029219]
[1761916712267,9.8497,3856.4,3856.3,0.42029219]
[1761916712756,9.8497,3856.4,3856.3,0.3565]
[1761916713661,0.747,3856.1,3856.0,0.3565]
[1761916714165,0.747,3856.1,3856.0,0.589]
[1761916714459,0.747,3856.1,3856.0,0.7204]
[1761916714656,0.4529,3856.1,3856.0,0.7204]
[1761916715864,0.747,3856.1,3856.0,0.7204]
[1761916716357,0.4529,3856.1,3856.0,0.9538]
[1761916716665,9.7419,3856.1,3856.0,0.9538]
[1761916716968,10.11710943,3856.1,3855.6,3.2078]
[1761916717164,0.4529,3855.8,3855.7,0.589]
[1761916717465,0.82810943,3855.8,3855.7,0.8224]
[1761916717666,0.747,3855.7,3855.6,3.2078]
[1761916717866,0.82810943,3855.7,3855.6,3.5643]
[1761916718559,0.747,3855.4,3855.3,0.2325]
[1761916718763,10.11311862,3855.4,3855.3,0.2325]
[1761916719261,9.81901862,3855.4,3855.3,0.8224]
[1761916720462,0.747,3855.2,3855.1,3.7968]
[1761916720961,0.747,3855.2,3855.1,3.2078]
[1761916721260,0.4529,3855.2,3855.1,3.9949]
[1761916721465,9.7309,3855.2,3855.1,3.9949]
[1761916721767,10.0251,3855.2,3855.1,3.7639]
[1761916721965,0.4529,3855.2,3855.1,3.9949]
[1761916722166,9.7309,3855.2,3855.1,3.9949]
[1761916722460,9.81202576,3855.2,3855.1,3.9949]
[1761916723763,0.53402576,3855.2,3855.1,3.9949]
[1761916723957,9.81002576,3855.2,3855.1,3.9949]
[1761916724361,10.10422576,3855.2,3855.1,3.9949]
[1761916724666,0.7402,3854.8,3854.7,3.5294]
[1761916724862,10.0082,3854.8,3854.7,3.7639]
[1761916725165,10.08933371,3854.8,3854.7,3.7639]
[1761916726067,10.08933371,3854.8,3854.7,3.2078]
[1761916726460,0.7402,3854.5,3854.4,0.45105]
[1761916727158,0.7402,3854.5,3854.4,0.68555]
[1761916727760,0.446,3854.5,3854.4,0.68555]
[1761916727968,0.446,3854.5,3854.4,0.91655]
[1761916729355,0.7402,3854.5,3854.4,0.91655]
[1761916729560,0.90574029,3854.5,3854.4,0.12945]
[1761916729764,0.7402,3853.9,3853.8,0.00198749]
[1761916729967,10.08428709,3853.9,3853.8,0.00198749]
[1761916730467,0.82328709,3853.9,3853.8,0.00198749]
[1761916730666,10.08528709,3853.9,3853.8,0.00198749]
[1761916731365,0.7402,3853.2,3853.1,0.44657043]
[1761916731566,0.7402,3853.0,3852.9,8.41714578]
[1761916731771,0.7402,3853.0,3852.9,8.09554578]
[1761916732367,0.7402,3853.0,3852.9,8.09890002]
[1761916732567,0.7402,3853.0,3852.9,8.42050002]
[1761916733376,0.446,3853.0,3852.9,8.88600002]
[1761916733674,9.71,3853.0,3852.9,8.88600002]
[1761916734373,0.446,3853.0,3852.9,8.88600002]
[1761916734576,5.121,3853.0,3852.9,8.88600002]
[1761916735571,0.1378,3854.5,3853.2,3.53491]
[1761916735772,0.4597,3854.5,3854.4,3.2078]
[1761916735967,0.4597,3854.5,3854.4,44.0078]
[1761916736272,0.6889,3854.5,3854.4,44.0078]
[1761916736670,0.69086592,3854.5,3854.4,44.0078]
[1761916738993,0.90766592,3854.5,3854.4,44.0078]
[1761916739480,0.69086592,3854.5,3854.4,44.0078]
[1761916739679,0.69086592,3854.5,3854.4,3.2078]
[1761916740879,0.90766592,3854.5,3854.4,3.2078]
[1761916741079,0.46166592,3854.5,3854.4,3.2078]
[1761916741272,0.3219,3855.4,3854.4,4.60972619]
[1761916741476,0.1378,3855.5,3855.3,3.53473]
[1761916741877,0.1378,3855.5,3855.4,40.8]
[1761916742274,0.1378,3856.0,3855.4,40.8]
[1761916742475,0.00328387,3856.0,3855.9,3.2078]
[1761916742784,0.00328387,3856.0,3855.9,3.21088974]
[1761916743073,0.4597,3856.5,3855.9,3.21088974]
[1761916743270,0.4597,3856.5,3856.4,3.2078]
[1761916743884,0.46301963,3856.5,3856.4,3.2078]
[1761916746485,0.69221963,3856.5,3856.4,3.2078]
[1761916746682,0.46301963,3856.5,3856.4,3.2078]
[1761916747278,0.69221963,3856.5,3856.4,3.2078]
[1761916748082,0.90901963,3856.5,3856.4,3.2078]
[1761916749978,0.46301963,3856.5,3856.4,3.2078]
[1761916751081,0.69221963,3856.5,3856.4,3.2078]
[1761916751394,0.91861963,3856.5,3856.4,3.2078]
[1761916753272,9.75401963,3856.5,3856.4,3.2078]
[1761916753585,9.98451963,3856.5,3856.4,3.2078]
[1761916753786,10.21091963,3856.5,3856.4,3.2078]
[1761916754884,0.46301963,3856.5,3856.4,3.2078]
[1761916755387,0.46301963,3856.5,3856.4,44.0078]
[1761916755685,0.69351963,3856.5,3856.4,44.0078]
[1761916756374,0.91991963,3856.5,3856.4,3.2078]
[1761916762387,0.46301963,3856.5,3856.4,3.2078]
[1761916763391,0.14111963,3856.5,3856.4,3.2078]
[1761916763783,0.14111963,3856.5,3856.4,44.0078]
[1761916765389,0.14111963,3856.5,3856.4,44.70246845]
[1761916765390,0.46721963,3856.5,3856.4,44.70246845]
[1761916766287,0.46721963,3856.5,3856.4,44.0078]
[1761916766888,0.14111963,3856.5,3856.4,44.0078]
[1761916767291,0.14111963,3856.5,3856.4,44.93448216]
[1761916767493,0.00331963,3856.5,3856.4,44.93448216]
[1761916767988,0.13651963,3856.5,3856.4,44.93448216]
[1761916768385,0.46261963,3856.5,3856.4,44.0078]